bitfinex-derivatives/quotes_ETHF0:USTF0_20250926
["timestamp","ask_amount","ask_price","bid_price","bid_amount"]
[1758865756597,3.5472,3931.7,3931.6,40.8]
[1758865757298,8.5472,3931.7,3931.6,40.8]
[1758865757502,0.1279,3931.0,3930.9,3.2078]
[1758865757698,0.1279,3931.5,3930.9,3.2078]
[1758865757906,0.3394,3931.4,3931.0,41.44951]
[1758865758098,0.3394,3931.4,3931.2,0.1919]
[1758865758296,3.2078,3931.7,3931.3,0.73257]
[1758865758297,0.3394,3931.6,3931.3,0.73257]
[1758865758603,3.2078,3931.7,3931.3,0.92448]
[1758865758800,3.2078,3931.7,3931.6,0.64944]
[1758865759005,3.2078,3931.7,3931.6,0.92444]
[1758865759705,3.2078,3931.7,3931.6,41.72444]
[1758865760097,3.2078,3931.7,3931.6,41.44944]
[1758865760297,3.5472,3931.7,3931.6,81.19254]
[1758865760697,3.2078,3931.7,3931.6,81.38444]
[1758865761601,3.5472,3931.7,3931.6,41.25754]
[1758865761907,3.5472,3931.7,3931.6,40.8]
[1758865762206,0.3394,3931.7,3931.6,41.074]
[1758865762505,0.3394,3931.7,3931.6,40.8]
[1758865763104,0.8918804,3931.7,3931.6,41.074]
[1758865763503,4.0996804,3931.7,3931.6,40.8]
[1758865763697,4.0996804,3931.7,3931.6,41.074]
[1758865764214,4.0996804,3931.7,3930.8,0.1919]
[1758865764215,0.1279,3930.0,3929.2,3.2078]
[1758865764406,0.1279,3930.0,3929.3,0.274]
[1758865764407,0.89182374,3929.9,3929.3,0.274]
[1758865764608,0.55242374,3929.8,3929.4,41.2578]
[1758865764811,0.3394,3929.9,3929.5,0.276]
[1758865765007,0.5522569,3929.8,3929.5,0.4679]
[1758865765210,0.3394,3929.9,3929.5,0.4679]
[1758865765404,0.55204001,3929.8,3929.5,0.276]
[1758865765606,0.1279,3930.0,3929.5,0.276]
[1758865765809,0.3394,3929.8,3929.5,0.276]
[1758865766009,0.1279,3930.0,3929.4,41.25779]
[1758865766209,0.3394,3929.8,3929.6,0.276]
[1758865766409,0.1279,3930.0,3929.6,0.276]
[1758865766709,0.3394,3929.8,3929.6,0.73377]
[1758865766905,0.1279,3930.0,3929.6,0.276]
[1758865767109,0.55142305,3929.9,3929.4,40.8]
[1758865767410,0.4673,3929.5,3929.4,40.8]
[1758865767612,0.4673,3929.5,3929.4,41.076]
[1758865768507,0.4673,3929.5,3929.4,40.8]
[1758865768714,0.4673,3929.5,3929.4,41.075]
[1758865769412,0.3394,3929.7,3929.5,0.45779]
[1758865769612,0.1279,3930.0,3929.4,40.8]
[1758865769913,0.55200965,3929.9,3929.5,0.275]
[1758865770115,0.4673,3929.5,3929.4,40.8]
[1758865770308,0.4673,3929.5,3929.4,41.075]
[1758865771015,0.4673,3929.5,3929.4,40.8]
[1758865771313,0.4673,3929.5,3929.4,41.075]
[1758865771504,0.4673,3929.5,3929.4,40.8]
[1758865771706,0.4673,3929.5,3929.4,41.075]
[1758865772210,0.4673,3929.5,3929.4,40.8]
[1758865772417,0.4673,3929.5,3929.4,41.075]
[1758865772710,0.3364,3929.4,3929.3,0.4578]
[1758865773015,0.3364,3929.4,3929.3,0.7328]
[1758865773311,0.3364,3929.4,3929.3,41.5328]
[1758865773813,0.3364,3929.9,3929.6,0.45777]
[1758865774013,0.1279,3930.0,3929.7,0.275]
[1758865774214,3.5442,3929.8,3929.7,0.275]
[1758865774812,3.2078,3929.8,3929.7,0.4671]
[1758865775018,3.2078,3930.6,3930.5,0.64977]
[1758865775210,3.2078,3930.6,3930.5,40.60177]
[1758865776119,3.2078,3931.1,3931.0,0.64971]
[1758865776318,3.2078,3931.1,3931.0,0.92471]
[1758865776817,0.4747,3931.5,3931.3,0.45758]
[1758865776818,0.3364,3931.4,3931.3,0.45758]
[1758865777017,3.2078,3931.6,3931.4,0.45756]
[1758865777315,3.2078,3931.6,3931.5,0.275]
[1758865777517,3.2078,3931.6,3931.4,0.45756]
[1758865777817,3.3715,3932.0,3931.5,0.73256]
[1758865778013,3.3715,3932.0,3931.7,0.45753]
[1758865778221,0.3364,3931.9,3931.8,0.1921]
[1758865778512,3.3715,3932.0,3931.5,40.8]
[1758865778513,0.3364,3931.8,3931.5,40.8]
[1758865778713,3.5442,3931.6,3931.5,40.8]
[1758865778918,3.5442,3931.6,3931.5,41.075]
[1758865779521,3.5442,3931.6,3931.5,40.8]
[1758865779724,3.5442,3931.6,3931.5,0.275]
[1758865780517,0.3364,3931.4,3931.2,41.25758]
[1758865780721,3.5442,3931.6,3931.3,0.92467]
[1758865781023,3.5442,3931.6,3931.4,0.64966]
[1758865781218,3.5696,3931.6,3931.5,0.275]
[1758865781415,3.5696,3931.6,3931.5,0.1921]
[1758865781616,3.5696,3931.6,3931.5,0.4671]
[1758865781918,0.0254,3931.6,3931.5,0.4671]
[1758865782520,0.0254,3931.6,3931.1,3.2078]
[1758865782718,0.1383,3931.0,3930.5,0.45766]
[1758865783022,0.3364,3930.9,3930.6,0.276]
[1758865783224,0.1383,3931.0,3930.6,41.076]
[1758865783618,0.3364,3930.9,3930.6,41.076]
[1758865783816,0.3364,3930.9,3930.6,41.53365]
[1758865784015,0.3364,3930.9,3930.7,0.1921]
[1758865784217,0.3364,3930.9,3930.8,0.276]
[1758865785011,0.1383,3931.0,3930.8,0.4681]
[1758865785216,3.2078,3931.2,3931.1,0.1921]
[1758865785521,3.5442,3931.2,3931.1,0.276]
[1758865785723,3.5442,3931.2,3931.1,0.4681]
[1758865785922,0.3364,3931.2,3931.1,0.4681]
[1758865786216,0.3364,3931.4,3930.9,40.8]
[1758865786423,0.1383,3931.5,3930.5,0.45767]
[1758865786424,0.1383,3931.0,3930.5,0.45767]
[1758865786615,0.3364,3930.9,3930.6,0.276]
[1758865786815,0.1383,3931.0,3930.6,0.276]
[1758865787010,0.3364,3930.9,3930.6,0.276]
[1758865787912,0.3364,3930.9,3930.2,40.8]
[1758865788225,0.1383,3930.5,3930.3,0.277]
[1758865788524,0.3364,3930.4,3930.3,0.277]
[1758865790819,5.0,3930.4,3929.1,3.2078]
[1758865791021,0.4747,3929.5,3929.4,0.279]
[1758865791623,0.1383,3929.5,3929.4,0.279]
[1758865791923,0.4747,3929.5,3929.4,0.279]
[1758865793418,0.3364,3928.9,3928.6,0.45789]
[1758865793619,0.1383,3929.0,3928.7,0.278]
[1758865793819,0.3364,3928.9,3928.8,40.8]
[1758865794424,3.2078,3929.3,3928.9,0.45786]
[1758865794625,0.3364,3929.2,3929.0,0.278]
[1758865794822,3.2078,3929.3,3929.2,0.1921]
[1758865795122,3.2078,3929.3,3929.2,5.25101317]
[1758865795916,0.4747,3930.0,3929.3,0.45781]
[1758865796120,0.4747,3930.0,3929.4,0.278]
[1758865796315,0.3364,3929.9,3929.5,0.45778]
[1758865796523,0.1383,3930.0,3929.6,0.278]
[1758865796822,0.1383,3930.0,3929.8,0.1921]
[1758865796823,0.3364,3929.9,3929.8,0.1921]
[1758865797027,0.3364,3929.9,3929.8,0.4701]
[1758865797222,0.3364,3929.9,3929.7,0.45776]
[1758865797427,0.3364,3929.9,3929.8,0.278]
[1758865798217,3.2078,3930.2,3929.9,0.1921]
[1758865798416,0.3364,3929.9,3929.2,2.26289641]
[1758865798621,0.3364,3929.9,3929.5,0.45778]
[1758865798831,0.3364,3929.9,3929.6,0.279]
[1758865799024,0.1383,3930.0,3929.6,0.279]
[1758865799828,0.3364,3929.7,3929.6,0.279]
[1758865800728,0.3405,3929.4,3929.3,40.8]
[1758865800927,0.3405,3929.4,3929.3,41.079]
[1758865801127,0.3405,3929.4,3929.3,40.8]
[1758865801326,0.3405,3929.4,3929.3,41.079]
[1758865801828,0.3405,3929.7,3929.6,0.64997]
[1758865802023,0.3405,3929.9,3929.8,0.45775]
[1758865802220,0.3405,3929.9,3929.8,0.73675]
[1758865804126,3.2078,3930.2,3929.8,0.73675]
[1758865804127,3.2078,3930.2,3930.1,0.45772]
[1758865804329,3.5483,3930.2,3930.1,0.73572]
[1758865804529,13.32961317,3930.2,3930.1,0.278]
[1758865804722,8.5487,3930.2,3930.1,0.278]
[1758865805325,0.45772,3930.1,3929.1,41.25783]
[1758865805523,0.3409,3929.4,3929.2,0.279]
[1758865806428,0.1387,3929.5,3929.1,40.8]
[1758865806625,0.3409,3929.4,3929.2,0.279]
[1758865806825,0.1387,3929.5,3929.1,40.8]
[1758865807027,0.3409,3929.4,3929.2,0.279]
[1758865807429,0.3409,3929.4,3929.1,40.8]
[1758865807833,3.2078,3929.2,3928.5,0.4579]
[1758865808033,0.1387,3929.0,3928.6,0.73689]
[1758865808234,0.3409,3928.9,3928.7,0.45787]
[1758865808436,0.3409,3928.9,3928.8,41.079]
[1758865810329,3.2078,3929.2,3928.8,41.079]
[1758865810330,3.2078,3929.2,3928.8,41.2711]
[1758865810536,3.5487,3929.2,3929.1,0.45783]
[1758865810729,3.5487,3929.2,3929.1,0.73583]
[1758865811035,0.3409,3929.2,3929.1,0.73583]
[1758865811532,0.0254,3929.5,3929.4,0.1921]
[1758865811726,3.2078,3930.4,3930.1,0.45771]
[1758865811924,3.5487,3930.4,3930.3,0.64979]
[1758865812123,3.5487,3930.4,3930.3,41.53569]
[1758865812330,3.5487,3930.4,3930.3,40.8]
[1758865812541,3.5487,3930.4,3930.3,0.278]
[1758865813138,3.5487,3930.4,3930.3,41.078]
[1758865814738,3.2078,3930.4,3930.3,41.2701]
[1758865814935,0.3409,3930.7,3930.3,50.85891317]
[1758865815130,3.5487,3930.9,3930.8,0.45764]
[1758865815335,3.5487,3930.9,3930.8,0.73564]
[1758865815630,0.3409,3929.9,3929.6,0.45777]
[1758865815835,0.1387,3930.0,3929.7,0.73876]
[1758865816036,0.3409,3929.9,3929.8,0.281]
[1758865816745,0.3409,3929.9,3929.0,0.45784]
[1758865816746,0.3409,3929.8,3928.8,39.683]
[1758865817051,0.4796,3929.0,3928.9,0.281]
[1758865818446,0.4796,3929.0,3928.9,41.081]
[1758865819050,3.2078,3929.4,3929.0,0.45785]
[1758865819250,3.2078,3929.4,3929.1,0.73783]
[1758865819447,0.3409,3929.3,3929.1,0.73783]
[1758865819643,0.3409,3929.3,3928.8,0.45786]
[1758865819947,0.4796,3928.0,3927.8,0.45798]
[1758865820136,0.3409,3928.0,3927.9,0.49755922]
[1758865820344,0.1387,3928.5,3927.9,0.49755922]
[1758865820345,0.3409,3928.4,3928.0,0.45796]
[1758865820644,0.4796,3928.5,3928.2,4.78091317]
[1758865820848,0.1387,3928.5,3928.3,0.28]
[1758865821146,0.3409,3928.4,3928.3,0.28]
[1758865822148,0.1387,3928.5,3928.1,4.78091317]
[1758865822447,0.4796,3928.0,3927.9,40.82545922]
[1758865822647,0.4796,3928.0,3927.9,41.10545922]
[1758865823150,0.4796,3928.0,3927.9,0.30545922]
[1758865823541,0.4796,3928.0,3927.9,0.02545922]
[1758865823542,5.4796,3928.0,3927.9,0.02545922]
[1758865823843,5.4796,3928.0,3927.9,0.30545922]
[1758865825346,5.4796,3928.0,3926.6,1.80508641]
[1758865825347,0.3409,3926.9,3926.4,5.01288641]
[1758865825543,0.3409,3926.9,3926.5,0.279]
[1758865825747,0.1387,3927.0,3926.8,0.6503]
[1758865826051,0.3409,3927.4,3927.0,0.45807]
[1758865826246,0.3409,3927.4,3927.1,0.279]
[1758865827243,0.59673,3927.5,3927.2,0.279]
[1758865827546,0.3409,3926.4,3926.3,0.46793298]
[1758865827744,3.5487,3926.4,3926.3,0.74693298]
[1758865828140,3.5487,3926.4,3926.3,0.46793298]
[1758865828342,8.2078,3926.4,3925.9,0.3279]
[1758865828548,3.2078,3926.4,3925.9,0.3279]
[1758865828843,3.2078,3926.4,3926.2,0.3279]
[1758865829045,3.2078,3926.4,3926.3,0.6089]
[1758865829251,3.2078,3926.4,3926.3,41.4089]
[1758865829840,0.3409,3927.0,3926.7,0.4581]
[1758865830043,0.3409,3927.0,3926.9,0.3279]
[1758865832047,0.3264,3927.2,3926.9,0.3337]
[1758865832650,3.2078,3927.3,3926.9,0.3337]
[1758865832946,0.3264,3927.2,3926.9,0.3337]
[1758865833150,3.2078,3927.3,3927.1,0.3337]
[1758865833352,3.2078,3927.3,3927.0,4.91171317]
[1758865833353,3.2078,3927.3,3927.2,0.6137]
[1758865833544,0.3264,3927.3,3927.2,0.6137]
[1758865834149,0.3264,3927.3,3926.7,8.44682317]
[1758865834450,0.3264,3927.2,3926.9,0.3337]
[1758865835051,0.3264,3927.2,3927.0,0.3337]
[1758865835247,0.3264,3927.2,3927.1,0.28]
[1758865835452,3.2078,3927.3,3927.2,0.3337]
[1758865835753,3.5342,3927.3,3927.2,41.1337]
[1758865836253,0.3264,3927.7,3927.6,0.3337]
[1758865836547,0.3264,3928.2,3927.9,0.3337]
[1758865836849,3.2078,3928.3,3928.2,0.3337]
[1758865837437,3.2078,3928.7,3928.6,0.79159]
[1758865837642,0.4634,3929.5,3929.1,0.3337]
[1758865837844,0.4634,3929.5,3929.2,0.279]
[1758865837845,0.3264,3929.4,3929.2,0.279]
[1758865838049,0.3264,3929.4,3929.3,0.3337]
[1758865838551,3.2078,3929.6,3929.2,0.279]
[1758865838852,3.2078,3929.6,3929.5,0.3337]
[1758865839054,3.2078,3929.6,3929.5,41.4127]
[1758865839444,3.2078,3929.6,3929.5,41.2645]
[1758865839648,3.2078,3929.6,3929.5,81.2465]
[1758865840250,3.2078,3930.0,3929.9,0.79144]
[1758865840447,3.2078,3930.0,3929.9,5.85135317]
[1758865841148,3.2078,3930.0,3929.9,46.65135317]
[1758865841343,0.0254,3930.2,3930.1,0.45772]
[1758865841545,0.0254,3930.2,3930.1,1.07042]
[1758865841751,3.2078,3930.9,3930.8,0.3337]
[1758865841952,3.5342,3930.9,3930.8,0.6127]
[1758865842255,3.5342,3930.9,3930.8,41.4127]
[1758865842552,3.5342,3930.9,3930.8,40.8]
[1758865842851,0.3264,3930.8,3930.5,0.279]
[1758865845652,0.3264,3930.8,3930.6,0.0347099]
[1758865846048,0.3264,3930.7,3930.6,0.0347099]
[1758865846653,0.137,3929.5,3929.1,0.279]
[1758865846855,3.5342,3929.2,3928.5,0.1308]
[1758865847154,3.5342,3929.2,3928.6,0.6147]
[1758865847357,3.5342,3929.2,3928.6,1.07258]
[1758865847549,3.5342,3929.2,3928.7,0.45787]
[1758865847752,3.2078,3929.2,3928.6,0.281]
[1758865848059,0.3264,3929.1,3928.7,0.3337]
[1758865848242,3.2078,3929.2,3928.6,0.73888]
[1758865848549,0.3264,3929.1,3928.9,0.3337]
[1758865848749,3.2078,3929.2,3929.1,0.3337]
[1758865849062,3.2078,3929.2,3928.5,0.281]
[1758865849063,0.137,3929.0,3928.5,0.281]
[1758865849250,3.2078,3928.8,3928.5,0.281]
[1758865849451,0.3264,3928.7,3928.5,0.281]
[1758865850249,3.2078,3928.8,3928.5,0.281]
[1758865850448,0.3264,3928.7,3928.5,0.281]
[1758865850850,3.2078,3928.8,3928.6,0.3337]
[1758865851048,3.2078,3928.8,3928.5,0.281]
[1758865851558,3.2078,3928.8,3927.5,40.8]
[1758865851559,0.137,3928.0,3927.5,40.8]
[1758865851854,0.3264,3927.9,3927.6,0.283]
[1758865852155,3.5342,3927.7,3927.6,0.283]
[1758865853659,3.9922,3927.7,3927.6,0.283]
[1758865853859,3.5342,3927.7,3927.6,0.283]
[1758865855057,3.5342,3927.7,3927.5,40.8]
[1758865855254,0.4634,3927.5,3927.4,0.285]
[1758865855458,0.3264,3927.5,3927.4,0.285]
[1758865855758,0.3264,3927.5,3927.4,41.085]
[1758865855962,0.4634,3927.5,3927.4,41.085]
[1758865857752,0.4634,3927.5,3927.4,41.084]
[1758865858454,3.2078,3927.7,3927.4,41.084]
[1758865858455,3.2078,3927.7,3927.4,41.4177]
[1758865858653,3.2078,3928.2,3927.7,0.45799]
[1758865858954,3.2078,3928.2,3928.0,0.3337]
[1758865859161,3.2078,3928.2,3928.1,0.6177]
[1758865859360,3.2078,3928.2,3928.1,5.70598817]
[1758865859562,3.10873366,3928.2,3928.1,11.03968817]
[1758865859758,3.02756797,3928.2,3928.1,11.03968817]
[1758865860056,0.137,3929.5,3929.2,0.45782]
[1758865860057,3.3448,3929.5,3929.2,0.45782]
[1758865860263,0.3399,3929.4,3929.3,0.284]
[1758865860557,0.3399,3929.4,3928.9,5.87983817]
[1758865860558,0.1343,3929.0,3928.9,5.87983817]
[1758865860764,0.4742,3929.0,3928.9,5.87983817]
[1758865860966,0.4742,3929.0,3928.9,86.66383817]
[1758865861162,0.4742,3929.0,3928.9,91.66383817]
[1758865861366,0.1343,3929.0,3928.9,91.66383817]
[1758865862064,0.4742,3929.0,3928.9,91.66383817]
[1758865862670,3.6847,3929.5,3929.3,0.4578]
[1758865862958,3.3448,3929.5,3929.4,0.284]
[1758865863166,0.137,3929.5,3929.4,0.284]
[1758865863358,0.4769,3929.5,3929.4,0.284]
[1758865863663,0.4769,3929.5,3929.4,41.084]
[1758865863866,3.6847,3929.5,3929.4,40.8]
[1758865864168,8.6847,3929.5,3929.4,0.284]
[1758865864561,0.322,3928.4,3928.3,3.2078]
[1758865864764,0.322,3928.4,3928.3,44.2908]
[1758865864968,0.322,3928.4,3928.3,44.0078]
[1758865865263,0.322,3928.4,3928.3,41.1177099]
[1758865865864,5.0,3928.4,3927.0,1.80508641]
[1758865866069,0.1309,3928.5,3926.6,2.72729421]
[1758865866070,0.1309,3927.0,3926.6,3.2078]
[1758865866358,0.1309,3927.0,3926.7,0.285]
[1758865866562,0.322,3926.9,3926.7,0.285]
[1758865867367,0.322,3926.4,3926.2,40.15317]
[1758865867565,0.322,3926.4,3926.3,3.4928]
[1758865868461,0.322,3926.4,3925.8,1.0]
[1758865868462,0.322,3925.9,3925.8,1.0]
[1758865868666,0.322,3925.9,3925.8,1.285]
[1758865869066,0.322,3925.9,3925.8,42.085]
[1758865869366,0.322,3925.9,3925.8,41.8]
[1758865869575,5.322,3925.9,3925.8,41.8]
[1758865869860,5.322,3925.9,3925.8,42.085]
[1758865870465,5.322,3925.9,3925.8,1.285]
[1758865870969,5.78021,3925.9,3925.8,1.285]
[1758865871361,5.322,3925.9,3925.8,1.285]
[1758865871957,5.78021,3925.9,3925.8,1.285]
[1758865872368,5.322,3925.9,3925.8,1.285]
[1758865872764,0.322,3925.9,3925.8,1.285]
[1758865874475,0.322,3925.9,3925.8,1.284]
[1758865875477,0.322,3925.9,3925.8,1.0]
[1758865875777,0.322,3925.9,3925.8,1.284]
[1758865877373,0.322,3925.9,3925.8,1.3187099]
[1758865877578,0.1309,3926.0,3925.8,41.4909299]
[1758865877782,0.322,3925.9,3925.8,1.0347099]
[1758865878072,0.78021,3925.9,3925.8,1.0347099]
[1758865878264,0.78021,3925.9,3925.8,1.3187099]
[1758865878770,0.78021,3925.9,3925.8,1.0347099]
[1758865878979,0.78021,3925.9,3925.8,1.3187099]
[1758865879865,0.45829,3925.2,3924.3,0.2267]
[1758865880067,0.1309,3925.0,3924.4,40.45937]
[1758865880467,0.322,3924.9,3924.5,41.0267]
[1758865880667,0.4529,3925.0,3924.6,0.2267]
[1758865880972,0.322,3925.0,3924.8,0.2267]
[1758865881171,3.6607,3925.5,3924.8,0.2267]
[1758865881570,3.6607,3925.5,3924.9,0.45832]
[1758865881769,3.6607,3925.5,3925.1,0.68499]
[1758865881970,3.6607,3925.5,3925.2,0.2267]
[1758865882163,3.2078,3925.5,3925.4,0.2267]
[1758865882368,0.322,3925.9,3925.4,0.2267]
[1758865882670,3.6607,3926.0,3925.4,0.2267]
[1758865883166,4.1189,3926.0,3925.4,0.2267]
[1758865883372,3.6607,3926.0,3925.4,0.2267]
[1758865883769,3.2078,3926.0,3925.7,0.45822]
[1758865884075,3.2078,3926.0,3925.3,5.70598817]
[1758865884076,3.2078,3926.0,3925.9,0.2267]
[1758865884269,3.2078,3926.0,3925.8,0.283]
[1758865884580,3.5298,3926.0,3925.6,0.45824]
[1758865884778,3.5298,3926.0,3925.9,40.8]
[1758865884980,3.5298,3926.0,3925.9,41.083]
[1758865885184,3.2078,3926.0,3925.9,41.3097]
[1758865885883,3.2332,3926.4,3926.1,0.45817]
[1758865886085,3.2332,3926.4,3925.9,46.083]
[1758865886086,3.2332,3926.4,3926.3,0.2267]
[1758865887080,0.0254,3926.4,3926.3,5.2614099]
[1758865887484,0.0254,3926.4,3926.3,46.0614099]
[1758865888084,0.0254,3926.4,3926.3,86.0654099]
[1758865889684,0.0254,3926.4,3926.3,86.0634099]
[1758865890382,0.322,3927.1,3926.6,0.2268]
[1758865890582,0.322,3927.1,3926.9,0.2268]
[1758865890770,3.5318,3927.3,3927.1,0.2268]
[1758865890976,3.5318,3927.3,3927.2,0.2615099]
[1758865890977,3.2078,3927.3,3927.2,0.2615099]
[1758865891176,0.324,3927.8,3927.6,0.2268]
[1758865891177,3.5318,3927.8,3927.6,0.2268]
[1758865891378,3.5318,3927.8,3927.7,41.082]
[1758865891784,3.2078,3927.8,3927.7,41.3088]
[1758865891985,3.5318,3928.2,3927.7,41.3435099]
[1758865892176,3.5318,3928.2,3928.1,0.45795]
[1758865892383,3.2078,3928.2,3928.1,0.96675]
[1758865892785,3.2078,3928.2,3928.1,41.48475]
[1758865892981,3.2078,3928.2,3928.1,41.5194599]
[1758865893191,3.2078,3928.2,3928.1,81.5194599]
[1758865893491,3.5318,3928.6,3928.4,0.68471]
[1758865893687,0.324,3928.6,3928.5,0.282]
[1758865893988,0.4549,3929.0,3928.7,0.2268]
[1758865894288,0.324,3928.9,3928.8,0.281]
[1758865895082,0.324,3928.9,3928.8,0.3157099]
[1758865897692,0.324,3929.0,3928.8,0.5425099]
[1758865898079,0.324,3929.0,3928.9,0.0359945]
[1758865898288,3.2078,3929.1,3928.9,0.2627945]
[1758865898586,0.0254,3929.3,3929.0,40.8]
[1758865898792,0.3494,3929.3,3929.1,0.73783]
[1758865898989,0.3494,3929.3,3929.1,0.28]
[1758865899188,0.3494,3929.3,3929.2,0.0359945]
[1758865899189,0.324,3929.3,3929.2,0.0359945]
[1758865899890,0.324,3929.3,3929.2,40.8359945]
[1758865900094,0.324,3929.3,3929.2,41.1159945]
[1758865902790,3.5318,3929.5,3929.2,41.1159945]
[1758865902997,3.5318,3929.5,3929.3,0.2268]
[1758865903191,3.5318,3929.5,3929.4,0.3159945]
[1758865904099,0.324,3929.5,3929.4,0.3159945]
[1758865904300,0.1359,3929.5,3929.2,40.8]
[1758865904491,0.1359,3929.5,3926.6,2.26917421]
[1758865904492,0.45795,3928.1,3927.3,3.5524]
[1758865904801,0.324,3928.4,3927.7,3.5524]
[1758865904989,0.324,3928.3,3927.8,41.081]
[1758865905189,0.1359,3928.0,3927.9,0.281]
[1758865905393,0.4599,3928.0,3927.9,0.281]
[1758865906093,0.4599,3928.0,3927.8,40.8]
[1758865906296,0.324,3927.9,3927.8,40.8]
[1758865906497,0.324,3927.9,3927.8,41.081]
[1758865907092,0.324,3927.9,3927.8,41.4256]
[1758865907293,3.2078,3928.2,3927.8,41.4256]
[1758865907497,0.324,3928.1,3927.9,0.3446]
[1758865907795,0.324,3928.1,3927.3,3.2078]
[1758865907996,0.45801,3927.7,3927.0,0.3446]
[1758865908198,3.2078,3927.8,3927.0,0.3446]
[1758865908199,0.45802,3927.6,3927.1,0.281]
[1758865908395,3.2078,3927.8,3927.1,0.281]
[1758865908396,0.91793,3927.5,3927.2,40.8]
[1758865908597,0.324,3927.4,3927.2,40.8]
[1758865909401,0.324,3927.4,3927.3,0.281]
[1758865912306,0.78196,3928.1,3927.4,0.3446]
[1758865912497,0.324,3928.1,3927.6,0.3446]
[1758865912699,0.324,3928.1,3927.7,0.281]
[1758865913202,0.324,3928.1,3927.8,0.3446]
[1758865913497,0.324,3928.1,3928.0,0.3446]
[1758865914194,3.2078,3928.2,3927.9,0.281]
[1758865914396,3.2078,3928.2,3928.0,0.3446]
[1758865914697,3.2078,3928.2,3928.1,0.6246]
[1758865915003,3.2078,3928.2,3928.1,41.4246]
[1758865915691,0.324,3928.1,3927.3,3.2078]
[1758865915892,0.1359,3927.5,3927.4,0.28]
[1758865916202,0.4599,3927.5,3927.4,41.08]
[1758865918013,0.4599,3927.5,3926.6,47.70140612]
[1758865918014,0.4581,3926.8,3926.6,0.3446]
[1758865918206,0.324,3926.7,3926.6,0.3446]
[1758865918400,0.324,3926.7,3926.6,0.6256]
[1758865918607,0.324,3926.7,3926.6,41.4256]
[1758865919404,3.2078,3927.4,3926.7,0.3446]
[1758865919405,0.324,3926.9,3926.7,0.3446]
[1758865919607,0.324,3926.9,3926.8,0.6256]
[1758865920401,3.555,3927.4,3927.0,0.3322]
[1758865920607,3.555,3927.4,3927.1,0.28]
[1758865921411,3.555,3927.8,3927.2,0.3322]
[1758865921709,3.2078,3928.2,3927.7,0.3322]
[1758865921909,3.2078,3928.2,3927.8,0.28]
[1758865922503,3.2078,3928.2,3928.1,0.3322]
[1758865922708,3.555,3928.6,3928.1,0.28]
[1758865923015,0.134,3929.5,3928.0,8.58475612]
[1758865923016,3.2078,3929.1,3928.6,0.3322]
[1758865923204,3.2078,3929.1,3928.7,0.28]
[1758865923402,3.2078,3929.1,3928.9,0.3322]
[1758865923816,3.2078,3929.1,3929.0,0.6122]
[1758865924206,0.45775,3929.9,3929.0,0.6122]
[1758865924207,3.2078,3929.5,3929.0,0.4084]
[1758865924508,0.3254,3929.4,3929.3,0.3221]
[1758865924709,0.3254,3929.4,3929.3,0.6021]
[1758865925099,0.3254,3929.4,3929.1,40.8]
[1758865925412,0.3254,3929.4,3927.8,0.281]
[1758865925413,0.3254,3927.9,3927.8,0.281]
[1758865926098,5.78337,3927.9,3927.8,0.281]
[1758865927510,5.0,3927.9,3926.7,3.2078]
[1758865927715,0.4581,3926.8,3926.3,3.2078]
[1758865927916,0.4581,3926.8,3926.4,0.281]
[1758865928108,0.3254,3926.5,3926.4,0.281]
[1758865928410,0.3254,3926.5,3926.4,41.081]
[1758865931510,0.4642,3926.5,3926.4,41.081]
[1758865931718,0.4642,3926.5,3925.8,43.2369]
[1758865931719,0.3254,3926.4,3925.8,3.2078]
[1758865931923,0.3254,3925.9,3925.8,3.2078]
[1758865932111,0.3254,3925.9,3925.8,3.4878]
[1758865932307,0.3254,3925.9,3925.8,44.2878]
[1758865934721,0.3254,3925.9,3925.8,44.6099]
[1758865935119,0.0254,3926.3,3925.8,44.6099]
[1758865935417,0.3254,3926.2,3925.8,41.08]
[1758865935621,0.3254,3926.2,3925.9,0.3221]
[1758865935920,0.3254,3926.1,3926.0,0.28]
[1758865937314,0.3254,3926.1,3926.0,0.6021]
[1758865937521,0.0254,3926.3,3926.1,0.3221]
[1758865937822,0.0254,3926.3,3926.2,0.6011]
[1758865938620,0.3508,3926.3,3926.2,0.6011]
[1758865938819,0.0254,3926.3,3926.2,0.6011]
[1758865940539,3.2078,3926.4,3926.3,0.78026]
[1758865940731,3.2078,3926.4,3926.3,0.3221]
[1758865941025,3.2078,3926.4,3926.3,0.6011]
[1758865942025,3.2078,3926.4,3926.3,5.6011]
[1758865942921,3.2078,3927.5,3927.0,0.1366]
[1758865943126,3.5332,3927.5,3927.1,0.278]
[1758865943327,3.5332,3927.5,3927.2,0.3221]
[1758865943523,3.5332,3927.5,3927.4,0.3221]
[1758865943724,0.3254,3927.4,3927.3,41.078]
[1758865943916,0.3254,3927.4,3927.3,41.4001]
[1758865945922,3.66578,3927.9,3927.3,41.4001]
[1758865946121,0.3254,3927.8,3927.3,41.4001]
[1758865946323,0.3254,3927.7,3927.4,0.3221]